Cogmind - Beta 17.1 @@@ ROGUE MODE // 2026.09.10 @ 08:11:53 Player: J1ang-5h1 Result: Destroyed by Y-72 Warden with Quantum Rifle Performance ------------- Evolutions (8) 4000 Regions Visited (15) 3000 Robots Destroyed (142) 710 Value Destroyed (7325) 7325 Prototype IDs (53) 1060 Alien Tech Used (2) 400 Bonus (18075) 18075 TOTAL SCORE: 34570 Bonus ------- High Alert Combat Kills 194 Follower Combat Kills 781 Prayed to X0-1V1 5000 Major X0-1V1 Interference 6000 Registered with UFD 300 Met Optimus in HQ 500 Met Zhirov 300 Met R17 at Cetus 500 Met R17 at Research 2000 Scanned by Researcher 500 Acquired SGEMP 2000 Cogmind --------- Core Integrity 0/1150 Matter 479/500 Energy 1175/1175 System Corruption 51% Temperature Cool (9) Movement Rolling (138) Ox3 Location -2/Research Parts ------- > --- POWER (4) -------- Reinforced Antimatter Reactor Micro Antimatter Reactor > --- PROPULSION (6) --- Wheel Compact Wheel Compact Wheel Antigrav System Improved Antigrav System Improved Antigrav System > --- UTILITY (10) ----- Experimental Cooling System Huge Storage Unit Advanced Energy Well Experimental Optical Array Advanced Transmission Jammer Ghost Barrier Stealth Drone Bay (2/2) X0-1V1's Piety Tracker > --- WEAPON (3) ------- Linear Accelerator > --- INVENTORY (25) --- Advanced Heat Sink Deep Structural Scanner Experimental Sensor Array Gamma Rifle Z-bomb Delivery System Plasma Cutter SGEMP Prototype Peak State ------------ > --- POWER ------------ Micro Antimatter Reactor Compact Particle Reactor Quantum Reactor Zero-point Reactor > --- PROPULSION ------- Advanced Medium Treads Advanced Medium Treads Heavy Siege Treads Centrium Heavy Treads > --- UTILITY ---------- Coolant Network Huge Storage Unit Experimental Optical Array Improved Weapon Cycler Centrium Medium Armor Plating Centrium Medium Armor Plating Advanced Force Field Ghost Barrier X0-1V1's Piety Tracker > --- WEAPON ----------- Matter Neutralizer Linear Accelerator Linear Accelerator > --- INVENTORY -------- Reinforced Antimatter Reactor Centrium Wheel Advanced Energy Well Compact Matter Pod Deep Structural Scanner Experimental Sensor Array Particle Accelerator Advanced Transmission Jammer Makeshift Heavy Armor Plating Centrium Medium Armor Plating High-powered Tractor Beam Mapping Drone Bay Stealth Drone Bay High-powered Disruptor Cannon Null Cannon Linear Accelerator Micro-nuke Launcher Z-bomb Delivery System Plasma Cutter Heavy Scimitar of Distortion SGEMP Prototype [Rating: 206] Favorites ----------- Power Fission Core Engine Improved Ion Engine Power Core Fission Core Reactor Quantum Reactor Propulsion Armored Treads Treads Armored Treads Leg Advanced Myomer Leg Wheel Compact Wheel Hover Unit Gravmag System Utility Huge Storage Unit Device X0-1V1's Piety Tracker Storage Huge Storage Unit Processor Advanced Visual Processing Unit Hackware Hacking Suite Protection Centrium Medium Armor Plating Weapon Advanced KE Penetrator Energy Gun Pulse Rifle Energy Cannon Matter Neutralizer Ballistic Gun Advanced KE Penetrator Ballistic Cannon Linear Accelerator Launcher Grenade Launcher Special Weapon Plasma Cutter Slashing Weapon Heavy Scimitar of Distortion Special Melee Weapon Chaos Jack Build | -11 -10 -10 -8 -6 -6 -6 -5 -5 -5 -5 -4 -4 -3 -3 -2 ------- Run | Yrd Mat Sub Scr Fac Ext Cet Fac Upp Upp Zhi Pro Fac Res Tes Res Slots Evolved 16 | . . . . 8 . . 2 . . . . 2 2 . 2 Power 3 | . . . . 1 . . . . . . . 1 . . 1 Propulsion 4 | . . . . 2 . . . . . . . . 2 . . Utility 8 | . . . . 4 . . 2 . . . . 1 . . 1 Weapon 1 | . . . . 1 . . . . . . . . . . . Parts Attached 136 | 8 14 5 4 18 10 13 4 2 6 5 . 1 10 17 19 Power 18 | 1 2 . . 3 1 2 . . . 1 . . 3 2 3 Engine 4 | 1 2 . . 1 . . . . . . . . . . . Core 3 | . . . . 2 1 . . . . . . . . . . Reactor 11 | . . . . . . 2 . . . 1 . . 3 2 3 Propulsion 29 | 2 5 2 1 3 2 1 1 . . 1 . . 2 1 8 Treads 12 | 2 . 1 1 1 2 1 . . . . . . 2 . 2 Leg 1 | . . . . . . . . . . 1 . . . . . Wheel 12 | . 5 1 . 1 . . 1 . . . . . . 1 3 Hover 4 | . . . . 1 . . . . . . . . . . 3 Flight . | . . . . . . . . . . . . . . . . Utility 52 | 2 3 . . 8 6 5 2 2 4 3 . 1 2 10 4 Device 37 | 1 2 . . 4 5 4 1 1 3 2 . 1 2 8 3 Storage 3 | 1 1 . . . . . . . . 1 . . . . . Processor 3 | . . . . 1 1 . . . . . . . . 1 . Hackware 3 | . . . . 2 . . . . . . . . . 1 . Protection 6 | . . . . 1 . 1 1 1 1 . . . . . 1 Artifact . | . . . . . . . . . . . . . . . . Weapon 37 | 3 4 3 3 4 1 5 1 . 2 . . . 3 4 4 Energy Gun 9 | 1 2 . 3 1 . 1 . . . . . . . 1 . Energy Cannon 4 | . . . . 1 . . . . 1 . . . . 1 1 Ballistic Gun 8 | 2 1 . . 1 . 4 . . . . . . . . . Ballistic Cannon 6 | . . . . . 1 . . . . . . . 3 . 2 Launcher 4 | . 1 1 . . . . . . . . . . . 1 1 Special Weapon 2 | . . 2 . . . . . . . . . . . . . Impact Weapon . | . . . . . . . . . . . . . . . . Slashing Weapon 3 | . . . . 1 . . 1 . . . . . . 1 . Piercing Weapon . | . . . . . . . . . . . . . . . . Special Melee Weapon 1 | . . . . . . . . . 1 . . . . . . Unidentified Prototypes 22 | . 1 . . 1 . 4 . . . 5 . . 2 7 2 Corrupted Parts 6 | . . . . . 1 . . . . . . . . . 5 System Corruption 28 | . . . . . 5 . . . . . . . . . 23 Parts Lost 40 | . . 3 . 1 2 2 . . 2 . . . . 3 27 Power 5 | . . . . . . . . . . . . . . 1 4 Propulsion 9 | . . 2 . . . 1 . . . . . . . 1 5 Utility 18 | . . . . 1 2 1 . . 2 . . . . 1 11 Weapon 8 | . . 1 . . . . . . . . . . . . 7 Highest Loss Streak 11 | . . 2 . 1 1 1 . . 2 . . . . 2 11 To Critical Strikes 1 | . . . . . . 1 . . . . . . . . . Average Backups 20 | 3 18 23 22 21 21 22 21 22 21 20 22 21 23 21 16 Power 1 | . 2 2 1 1 1 . . . . . 1 . . . . Propulsion 1 | 2 5 4 . . . . . 1 1 1 1 1 1 1 . Utility 12 | . 2 8 14 16 15 15 14 14 13 12 13 13 14 12 8 Weapon 5 | 1 5 7 5 3 4 5 6 6 6 5 5 5 6 5 4 Tool/Special . | . . . . . . . . . . . . . . . . Unused Backups 45 | 1 3 1 9 7 3 5 1 . 1 1 1 . 4 3 5 Power 4 | 1 1 . . 2 . . . . . . . . . . . Propulsion 3 | . 1 . 1 . . . . . . . . . . . 1 Utility 25 | . . . 6 4 2 4 1 . . 1 1 . 2 1 3 Weapon 11 | . 1 . 2 . 1 1 . . 1 . . . 2 2 1 Tool/Special 2 | . . 1 . 1 . . . . . . . . . . . Average Slot Usage (%) 90 | . 99 91 91 95 99 97 88 88 87 86 88 88 81 79 74 Engine 4 | . 14 14 12 2 . . . . . . . . . . . Core 3 | . . . . 10 13 10 . . . . . . . . . Reactor 5 | . . . . . . 2 11 11 11 11 11 15 13 13 14 Treads 9 | . 6 1 12 10 15 17 5 5 5 4 5 5 5 9 10 Wheel 8 | . 21 18 13 7 10 6 5 5 5 5 5 5 4 3 1 Device 20 | . 14 14 14 17 19 21 28 25 23 23 29 30 27 25 19 Storage 7 | . 14 14 13 6 6 6 5 5 5 5 5 5 4 4 4 Processor 3 | . . . . 5 6 6 5 5 5 5 5 5 4 4 4 Hackware 2 | . . . . 7 6 4 . . . . . . . 1 4 Protection 2 | . . . . . . . 5 8 10 8 5 5 4 . 2 Energy Gun 7 | . 12 14 21 9 5 . . . . . . . . . . Energy Cannon 2 | . . . . 2 6 4 . . 1 5 5 5 4 1 4 Ballistic Gun 6 | . 15 1 . 5 6 8 16 17 14 10 11 10 8 . . Ballistic Cannon 1 | . . . . . . 4 . . . . . . . 11 6 Peak Build Rating 206 | 7 24 25 35 71 76 109 125 131 131 129 126 139 155 177 206 Average Rating 87 | 4 11 23 27 64 69 81 124 129 129 124 125 138 142 167 170 On Entrance 90 | . 7 24 25 35 68 76 109 125 131 127 126 126 139 154 175 Avg Prop Armor Cover (%) 12 | . . 12 14 15 16 16 8 8 7 6 4 4 10 12 13 Naked Turns . | . . . . . . . . . . . . . . . . Heaviest Build 202 | 12 94 94 94 119 128 146 154 158 166 166 156 177 178 186 202 Greatest Support 210 | 40 40 16 16 26 70 80 80 28 80 80 80 80 35 150 210 Greatest Overweight (x) 63 | 3 4 5 26 7 12 13 5 5 5 50 1 2 6 9 63 Average Overweight (x) 4 | 2 2 5 4 6 8 9 4 5 4 3 1 2 5 3 4 Largest Inventory Capacity 25 | 8 25 25 25 25 25 25 25 25 25 25 25 25 25 25 25 Average Capacity 24 | 7 22 25 23 25 25 25 25 25 25 25 25 25 25 25 25 Most Carried 25 | 6 25 25 25 25 25 25 25 25 25 25 25 25 25 25 25 Average Carried 23 | 4 18 23 23 24 24 24 24 25 24 23 24 23 24 24 20 Final Capacity 25 | 8 25 25 25 25 25 25 25 25 25 25 25 25 25 25 25 Final Carried 25 | 4 25 22 25 25 25 25 25 25 23 25 25 25 25 25 8 Class Distribution -------------------- 32% | Scavenger-Tank 31% | Mutant 14% | Skirmisher 6% | Generator-Tank 3% | Hacker-Tank Dominant Class ---------------- Mutant | -10/Materials Mutant | -10/Subcaves Mutant | -8/Scraptown Skirmisher | -6/Factory Skirmisher | -6/Extension Scavenger-Tank | -6/Cetus Scavenger-Tank | -5/Factory Scavenger-Tank | -5/Upper Caves Scavenger-Tank | -5/Upper Caves Scavenger-Tank | -5/Zhirov Scavenger-Tank | -4/Proximity Caves Scavenger-Tank | -4/Factory Scavenger-Tank | -3/Research Infiltrator-Tank | -3/Testing Generator-Tank | -2/Research Resources | -11 -10 -10 -8 -6 -6 -6 -5 -5 -5 -5 -4 -4 -3 -3 -2 ----------- Run | Yrd Mat Sub Scr Fac Ext Cet Fac Upp Upp Zhi Pro Fac Res Tes Res Matter Collected 6552 | 306 436 31 109 1163 222 554 212 32 152 110 61 80 981 865 1238 Remotely 816 | . . . . 115 . 137 . . . . . . . 279 285 Salvage Created 5963 | 126 684 . . 490 140 381 520 85 163 343 101 80 78 654 2118 Parts 280 | 13 55 . . 31 6 17 31 4 7 3 7 3 3 48 52 Haulers Intercepted 2 | . 2 . . . . . . . . . . . . . . Recyclers Shooed 5 | . . . . . . . 1 . . . . . . . 4 Parts Field Recycled . | . . . . . . . . . . . . . . . . Retrieved Matter . | . . . . . . . . . . . . . . . . Parts Self-Destructed 20 | . . . . . . . . 4 7 2 7 . . . . Prevented . | . . . . . . . . . . . . . . . . Parts Restored . | . . . . . . . . . . . . . . . . Kills | -11 -10 -10 -8 -6 -6 -6 -5 -5 -5 -5 -4 -4 -3 -3 -2 ------- Run | Yrd Mat Sub Scr Fac Ext Cet Fac Upp Upp Zhi Pro Fac Res Tes Res Combat Hostiles Destroyed 97 | . 16 1 . 8 2 6 7 1 6 . 2 1 1 16 30 Melee 2 | . . . . . . . . . . . . . . . 2 Guns 33 | . 11 1 . 7 2 2 7 1 . . 1 . 1 . . Cannons 40 | . . . . 1 . 4 . . 1 . 1 1 . 15 17 AOE 16 | . 5 . . . . . . . 4 . . . . . 7 Classes Destroyed 22 | 2 7 1 . 2 1 . 2 . . . . . 1 3 3 Worker 5 | . 1 . . . . . . . . . . . 1 1 2 Builder 9 | . . . . . . . 3 . . . . . . . 6 Tunneler 6 | 3 2 . . . . . 1 . . . . . . . . Hauler 2 | . 2 . . . . . . . . . . . . . . Recycler 10 | 1 . . . . . . . . . . . . . 1 8 Mechanic 1 | . 1 . . . . . . . . . . . . . . Operator 4 | . 2 . . . 1 . . . . . . . . . 1 Watcher 6 | . 2 . . 2 . 1 1 . . . . . . . . Swarmer 15 | . 6 . . . . . . . 4 . . . . . 5 Grunt 20 | . 10 . . 3 1 . 3 . . . . . . . 3 Brawler 3 | . . . . . . . 1 . . . . . . . 2 Researcher 2 | . . . . . . . . . . . . . . 2 . Sentry 4 | . . . . 1 . . . 1 . . . 1 . . 1 Specialist 2 | . . . . . . . . . . . . . . . 2 Hunter 13 | . . . . . 1 . 2 . 2 . . . . 1 7 Programmer 24 | . . . . 4 . . 1 . . . 2 . . 11 6 Heavy 1 | . . . . . . . . . . . . . . . 1 Q-Series 3 | . . . . . . . . . . . . . . . 3 Cetus Guard 6 | . . . . . . 6 . . . . . . . . . Striker 3 | . . . . . . . . . . . . . 1 2 . Alpha 7 1 | . . . . . . . . . . . . . . 1 . Protovariant L 1 | . . . . . . . . . . . . . . 1 . Subdweller 1 | . . 1 . . . . . . . . . . . . . Best Kill Streak 16 | 3 8 1 . 3 1 3 6 1 4 . 2 1 1 4 16 Combat Bots Only 11 | . 8 1 . 3 1 3 3 1 4 . 2 1 1 3 11 Max Kills in Single Turn 3 | 1 3 1 . 1 1 2 2 1 3 . 1 1 1 2 3 Gunslinging . | . . . . . . . . . . . . . . . . Exploded 3 | . 3 . . . . . . . 3 . . . . . 2 Melee 1 | . . . . . . . . . . . . . . . 1 Uniques/NPCs Destroyed . | . . . . . . . . . . . . . . . . Combat | -11 -10 -10 -8 -6 -6 -6 -5 -5 -5 -5 -4 -4 -3 -3 -2 -------- Run | Yrd Mat Sub Scr Fac Ext Cet Fac Upp Upp Zhi Pro Fac Res Tes Res Hostile Shots Fired 762 | . 67 8 . 43 16 28 52 4 20 . 9 6 4 151 354 Missed 175 | . 19 3 . 15 6 6 8 . 1 . . 2 1 35 79 Hits 587 | . 48 5 . 28 10 22 44 4 19 . 9 4 3 116 275 Melee 17 | . . . . . . . . . . . . . . 14 3 Projectile 570 | . 48 5 . 28 10 22 44 4 19 . 9 4 3 102 272 Critical Strikes 28 | . . . . . . 5 1 . 2 . . . 1 11 8 Part Disruptions 1 | . . . . . . . . . . . . . . . 1 Damage Taken 11916 | . 514 188 . 349 143 551 628 95 257 . 85 45 92 1977 6992 Core 1587 | . 135 29 . 16 12 56 34 . 6 . 9 . . 140 1150 Absorbed by Shields 2796 | . . . . . 43 169 186 . 79 . 90 48 94 1304 783 Reduced by Siege Mode 298 | . . . . . . . . . 5 . . . . 278 15 Ignored by Resistances 19 | . . . . . . . 19 . . . . . . . . Regen/Repaired (Parts) 71 | . . . . 71 . . . . . . . . . . . Core Remaining (%) 83 | 100 . . 34 . . 88 . . . . 98 100 . 81 . Volleys Fired 367 | 9 69 15 . 20 6 27 21 1 6 . 5 3 6 60 119 Largest 3 | 2 2 2 . 3 3 3 3 3 3 . 3 3 3 3 3 Hottest 289 | 40 85 165 . 173 165 158 105 105 175 . 175 175 175 214 289 Shots Fired 831 | 18 135 25 . 53 18 66 63 3 14 . 11 7 10 163 245 Gun 332 | 18 133 14 . 47 12 20 63 3 8 . 6 4 4 . . Cannon 475 | . . . . 6 6 46 . . 4 . 5 3 6 163 236 Launcher 14 | . 2 1 . . . . . . 2 . . . . . 9 Special 10 | . . 10 . . . . . . . . . . . . . Kinetic 520 | 18 81 3 . 17 6 47 63 3 8 . 6 4 4 133 127 Thermal 252 | . 52 20 . 22 6 19 . . 4 . 5 3 6 30 85 Explosive 14 | . 2 1 . . . . . . 2 . . . . . 9 Electromagnetic 45 | . . 1 . 14 6 . . . . . . . . . 24 Robot Hit Streak 49 | 7 12 7 . 12 9 8 10 3 6 . 4 9 11 49 24 Robot Miss Streak 8 | 1 6 1 . 3 2 3 2 . 2 . 2 . 1 3 8 Penetration Max 1 | . . . . 1 . 1 1 . . . . . . . . Secondary Targets 2 | . 1 . . 1 . . . . . . . . . . . Max Gunslinging Chain 1 | . 1 . . 1 . . . . . . . . . . . Shots Hit Robots 567 | 14 81 17 . 37 11 42 41 2 7 13 4 5 5 118 170 Core Hits 255 | 5 41 2 . 22 6 21 22 2 6 2 2 2 2 35 85 Critical Kills 9 | . . . . 1 . 4 1 . 1 . . . 1 . 1 Critical Parts Destroyed 15 | . 1 . . 2 . 6 6 . . . . . . . . Critical Strikes 50 | . 6 . . 4 . 11 7 . 1 . . . 1 11 9 Burn 6 | . 5 . . 1 . . . . . . . . . . . Meltdown 2 | . . . . . . . . . 1 . . . . . 1 Destroy 23 | . 1 . . 3 . 11 7 . . . . . 1 . . Blast 18 | . . . . . . . . . . . . . . 11 7 Corrupt 1 | . . . . . . . . . . . . . . . 1 Melee Attacks 35 | . . . . 3 . . 1 . . 13 . . . 3 15 Impact . | . . . . . . . . . . . . . . . . Slashing 26 | . . . . 3 . . 1 . . 13 . . . 3 6 Piercing 9 | . . . . . . . . . . . . . . . 9 Sneak Attacks . | . . . . . . . . . . . . . . . . Combat Hostiles . | . . . . . . . . . . . . . . . . Follow-up Attacks . | . . . . . . . . . . . . . . . . Damage Inflicted 20999 | 165 1315 193 . 703 243 1190 1330 55 399 1093 216 174 182 5036 8705 Guns 4238 | 165 1075 97 . 604 169 508 1330 55 21 . 80 64 70 . . Cannons 12951 | . . . . 64 74 682 . . 145 . 136 110 112 5036 6592 Explosions 2343 | . 240 . . . . . . . 233 . . . . . 1870 Melee 1371 | . . . . 35 . . . . . 1093 . . . . 243 Ramming . | . . . . . . . . . . . . . . . . Kinetic 10907 | 165 610 . . 290 79 852 1330 55 21 . 80 64 70 4301 2990 Thermal 5792 | . 465 193 . 253 74 338 . . 145 . 136 110 112 735 3231 Explosive 2306 | . 240 . . . . . . . 233 . . . . . 1833 Electromagnetic 623 | . . . . 125 90 . . . . . . . . . 408 Impact . | . . . . . . . . . . . . . . . . Slashing 1358 | . . . . 35 . . . . . 1093 . . . . 230 Piercing 13 | . . . . . . . . . . . . . . . 13 Highest Corruption 51 | . 1 1 . 2 7 7 . . . . 4 . 1 10 51 Average Corruption 4 | . 1 1 . 1 3 7 . . . . 3 . 1 3 13 Corruption Purged . | . . . . . . . . . . . . . . . . Corruption Blocked . | . . . . . . . . . . . . . . . . Effects 167 | . 5 . . 8 44 20 . . . . 11 . 3 17 59 Message Errors 29 | . . . . 3 9 3 . . . . 1 . 2 2 9 Matter Fused 37 | . 1 . . . 12 6 . . . . 6 . . 1 11 Heat Flow Errors 19 | . 1 . . . 6 2 . . . . 1 . . 3 6 Energy Discharges 23 | . 1 . . 2 6 2 . . . . 1 . . 4 7 Parts Rejected 2 | . 1 . . . 1 . . . . . . . . . . Parts Fused 1 | . . . . . . . . . . . . . . . 1 Data Loss (minor) 24 | . . . . 2 3 6 . . . . 1 . 1 3 8 Data Loss (major) 13 | . 1 . . 1 6 . . . . . 1 . . 1 3 Misfires 7 | . . . . . . . . . . . . . . 1 6 Alerts 3 | . . . . . 1 . . . . . . . . 1 1 Weapon Failures 9 | . . . . . . 1 . . . . . . . 1 7 Overload Shots . | . . . . . . . . . . . . . . . . Overflow Damage 991 | . . . . . . . . . 23 223 . . 24 135 586 Projectiles 585 | . . . . . . . . . . . . . 24 135 426 Explosions 166 | . . . . . . . . . 23 . . . . . 143 Melee 240 | . . . . . . . . . . 223 . . . . 17 Knockbacks 56 | . . . . . . 2 . . . . . . . 36 18 Impact . | . . . . . . . . . . . . . . . . Kinetic 52 | . . . . . . 2 . . . . . . . 33 17 Secondary 4 | . . . . . . . . . . . . . . 3 1 Self-Inflicted Damage 167 | . . . . . . . . . 19 . . . . . 148 Shots 5 | . . . . . . . . . 2 . . . . . 3 Rammed . | . . . . . . . . . . . . . . . . Targets Rammed . | . . . . . . . . . . . . . . . . Kicked . | . . . . . . . . . . . . . . . . Crushed . | . . . . . . . . . . . . . . . . Highest Temperature 577 | . 127 3 . 228 212 246 . . 12 . 214 82 14 155 577 Average Temperature 101 | . 13 3 . 97 72 98 . . 5 . 46 43 9 60 149 Received Heat Transfer 644 | . 234 45 . 42 16 48 35 18 . . . 12 4 . 190 Effects 20 | . . . . . . . . . . . . . . . 20 Shutdowns 9 | . . . . . . . . . . . . . . . 9 Interference 3 | . . . . . . . . . . . . . . . 3 Matter Decay 1 | . . . . . . . . . . . . . . . 1 Short Circuit 1 | . . . . . . . . . . . . . . . 1 Damage (minor) 4 | . . . . . . . . . . . . . . . 4 Damage (core) 2 | . . . . . . . . . . . . . . . 2 Siege Activations 12 | . . . . . . . . . 3 . 1 . . 3 5 Total Turns 169 | . . . . . . . . . 35 . 4 . . 91 39 Longest Duration 59 | . . . . . . . . . 13 . 4 . . 59 17 Martial Activations . | . . . . . . . . . . . . . . . . Shielding Activations . | . . . . . . . . . . . . . . . . Robots Disrupted 1 | . . . . . . . . . . . . . . . 1 Combat Hostiles 1 | . . . . . . . . . . . . . . . 1 Robots Corrupted 2 | . . . . . . . . . . . . . . . 2 Combat Hostiles 1 | . . . . . . . . . . . . . . . 1 Parts Fried 7 | . . . . . . . . . . . . . . . 7 Impact Corruptions . | . . . . . . . . . . . . . . . . Robots Melted 4 | . . . . . . . . . 1 . . . . . 3 Combat Hostiles 4 | . . . . . . . . . 1 . . . . . 3 Parts Melted 20 | . 2 . . 2 2 5 . . 2 . . 1 . . 6 Heat Transferred 7080 | . 1591 422 . 544 150 650 . . 148 . 111 111 111 703 2539 Parts Sabotaged . | . . . . . . . . . . . . . . . . Parts Stolen . | . . . . . . . . . . . . . . . . Parts Stripped . | . . . . . . . . . . . . . . . . Power Chain Reactions 1 | . . . . . . . . . . . . . . . 1 Alert | -11 -10 -10 -8 -6 -6 -6 -5 -5 -5 -5 -4 -4 -3 -3 -2 ------- Run | Yrd Mat Sub Scr Fac Ext Cet Fac Upp Upp Zhi Pro Fac Res Tes Res Maximum Alert Level 2 | . 1 . . 1 1 . . . . . . . 1 1 2 Low Security (%) 84 | 100 91 . . 65 86 100 100 . . . . 100 89 83 74 Level 1 11 | . 8 . . 34 13 . . . . . . . 10 16 . Level 2 3 | . . . . . . . . . . . . . . . 24 Level 3 . | . . . . . . . . . . . . . . . . Level 4 . | . . . . . . . . . . . . . . . . Level 5 . | . . . . . . . . . . . . . . . . High Security . | . . . . . . . . . . . . . . . . Max Security . | . . . . . . . . . . . . . . . . Peak Influence 653 | 10 292 . . 324 321 195 153 . . . . 30 256 263 653 Initial 173 | . . . . . 110 173 4 . . . . . 1 . 136 Average 89 | . 49 . . 100 48 95 65 . . . . 1 71 111 204 Influence Increases 4977 | 20 572 . . 564 727 222 347 20 140 15 50 30 337 641 1292 Destroy 0b10 Robot/C 2380 | . 320 . . 160 380 160 180 20 120 . 40 20 20 360 600 Destroy 0b10 Robot/NC 245 | 20 50 . . 10 15 10 25 . . 15 . . 5 10 85 Destroy Leader 478 | . 88 . . 64 74 . 32 . 20 . 10 10 . 50 130 Allied During Kill 249 | . . . . . 212 17 4 . . . . . . . 16 Successful Hack 232 | . 35 . . 36 36 8 14 . . . . . 48 38 17 Select Force Hacks 90 | . 60 . . . . . 30 . . . . . . . . Disable Machine 210 | . . . . . . 15 15 . . . . . . 135 45 Destroy Structure 472 | . 19 . . . 10 12 32 . . . . . 12 48 339 Lose Combat Pursuer 75 | . . . . . . . 15 . . . . . . . 60 Miscellaneous 546 | . . . . 294 . . . . . . . . 252 . . Influence Decreases 4433 | 20 473 99 . 338 642 524 223 153 118 37 50 26 341 398 991 Entered New Map 489 | . . 48 . . 116 138 5 50 . 22 . . 3 . 107 Time Decay 3190 | 20 323 31 . 328 402 326 178 103 108 15 50 26 338 368 574 Lost Part 376 | . . 20 . 10 16 20 . . 10 . . . . 30 270 Lost Ally 228 | . . . . . 108 40 40 . . . . . . . 40 Purge Threat 150 | . 150 . . . . . . . . . . . . . . Squads Dispatched 49 | . 4 . . 4 3 . 3 . . . . 1 14 10 10 Investigation 7 | . 3 . . 1 . . 1 . . . . . 1 1 . Extermination 14 | . . . . 3 . . . . . . . 1 1 4 5 Reinforcement 24 | . 1 . . . 3 . 2 . . . . . 12 2 4 Assault 1 | . . . . . . . . . . . . . . . 1 Garrison 3 | . . . . . . . . . . . . . . 3 . Intercept . | . . . . . . . . . . . . . . . . Searches Triggered . | . . . . . . . . . . . . . . . . Construction Impeded 1 | . . . . . . . . . . . . . . . 1 Haulers Reinforced 4 | . . . . . . . 1 . . . . . 2 . 1 Active Scanning Responses . | . . . . . . . . . . . . . . . . Cargo Convoy Interrupts 1 | . . . . 1 . . . . . . . . . . . Stealth | -11 -10 -10 -8 -6 -6 -6 -5 -5 -5 -5 -4 -4 -3 -3 -2 --------- Run | Yrd Mat Sub Scr Fac Ext Cet Fac Upp Upp Zhi Pro Fac Res Tes Res Distress Signals 13 | . 1 . . . 5 2 . . . . . . 4 . 1 Communications Jammed 12 | . . . . . . . . . . . . . . 2 10 Distress Signals 12 | . . . . . . . . . . . . . . 2 10 Times Spotted 173 | . 30 2 . 11 18 14 11 1 6 . 2 1 5 23 49 Peak Tracking Total 7 | . 3 1 . 2 5 5 5 1 4 . 2 1 3 7 7 Tactical Retreats 3 | . . . . . . . 1 . . . . . . . 2 Traps | -11 -10 -10 -8 -6 -6 -6 -5 -5 -5 -5 -4 -4 -3 -3 -2 ------- Run | Yrd Mat Sub Scr Fac Ext Cet Fac Upp Upp Zhi Pro Fac Res Tes Res Traps Triggered 6 | . 1 1 . . 1 . 1 . . . . . . 2 . Indirectly . | . . . . . . . . . . . . . . . . Trap Hack Attempts . | . . . . . . . . . . . . . . . . Triggered . | . . . . . . . . . . . . . . . . Disarmed . | . . . . . . . . . . . . . . . . Reprogrammed . | . . . . . . . . . . . . . . . . Reused . | . . . . . . . . . . . . . . . . Traps Extracted . | . . . . . . . . . . . . . . . . Installed . | . . . . . . . . . . . . . . . . Triggered . | . . . . . . . . . . . . . . . . Machines | -11 -10 -10 -8 -6 -6 -6 -5 -5 -5 -5 -4 -4 -3 -3 -2 ---------- Run | Yrd Mat Sub Scr Fac Ext Cet Fac Upp Upp Zhi Pro Fac Res Tes Res Machines Disabled 18 | . 1 . . . . 1 1 . . . . . . 12 3 Max in Single Turn 1 | . 1 . . . . 1 1 . . . . . . 1 1 Garrison Access 3 | . . . . 1 . . . . . . . . 2 . . Machines Repaired . | . . . . . . . . . . . . . . . . Machines Dismantled . | . . . . . . . . . . . . . . . . Machines Sabotaged . | . . . . . . . . . . . . . . . . Overloaded Fab Kills . | . . . . . . . . . . . . . . . . Hacking | -11 -10 -10 -8 -6 -6 -6 -5 -5 -5 -5 -4 -4 -3 -3 -2 --------- Run | Yrd Mat Sub Scr Fac Ext Cet Fac Upp Upp Zhi Pro Fac Res Tes Res Machines Accessed 61 | . 10 . 10 6 5 2 3 . 1 7 . . 5 7 5 Terminals 31 | . 7 . . 3 5 2 2 . 1 . . . 3 4 4 Fabricators 1 | . . . . . . . . . . . . . 1 . . Repair Stations 6 | . 1 . . 2 . . . . . . . . . 2 1 Recycling Units 3 | . 2 . . . . . 1 . . . . . . . . Scanalyzers 2 | . . . . . . . . . . . . . 1 1 . Garrison Access 1 | . . . . 1 . . . . . . . . . . . Total Hacks 205 | . 34 . 76 15 10 2 4 . 1 29 . . 9 16 9 Successful 150 | . 18 . 76 9 4 1 2 . 1 29 . . 2 4 4 Failed 54 | . 15 . . 6 6 1 2 . . . . . 7 12 5 Catastrophic 20 | . 2 . . 2 1 . 1 . . . . . 3 7 4 Database Lockouts 1 | . 1 . . . . . . . . . . . . . . Manual 31 | . 21 . . 4 2 . 3 . . . . . 1 . . Terminals 73 | . 27 . . 10 10 2 3 . 1 . . . 6 9 5 Fabricators 1 | . . . . . . . . . . . . . 1 . . Repair Stations 17 | . 3 . . 4 . . . . . . . . . 6 4 Recycling Units 5 | . 4 . . . . . 1 . . . . . . . . Scanalyzers 3 | . . . . . . . . . . . . . 2 1 . Garrison Access 1 | . . . . 1 . . . . . . . . . . . Terminal Hacks 126 | . 7 . 76 4 3 1 . . 1 29 . . 1 2 2 Record 94 | . . . 75 . . . . . 1 17 . . . . 1 Part Schematic 6 | . . . . 1 1 . . . . 4 . . . . . Robot Analysis 7 | . 1 . . 2 . . . . . 4 . . . . . Prototype ID Bank 6 | . 1 . . 1 . . . . . 4 . . . . . Open Door 3 | . . . . . 2 1 . . . . . . . . . Open DSF 1 | . . . . . . . . . . . . . . . 1 Branch Access Points 1 | . . . . . . . . . . . . . . 1 . Terminal Index 2 | . 1 . . . . . . . . . . . . 1 . Unreport Threat 1 | . 1 . . . . . . . . . . . . . . Locate Traps 2 | . 1 . . . . . . . . . . . 1 . . Hauler Manifests 1 | . 1 . . . . . . . . . . . . . . Zone Layout 1 | . 1 . . . . . . . . . . . . . . Proto ID Catalog 1 | . . . 1 . . . . . . . . . . . . Fabricator Hacks . | . . . . . . . . . . . . . . . . Repair Station Hacks 9 | . 1 . . 4 . . . . . . . . . 2 2 Scan Component 7 | . 1 . . 2 . . . . . . . . . 2 2 Repair 2 | . . . . 2 . . . . . . . . . . . Recycling Unit Hacks 1 | . 1 . . . . . . . . . . . . . . Report Inventory 1 | . 1 . . . . . . . . . . . . . . Scanalyzer 1 | . . . . . . . . . . . . . 1 . . Retrieve Study 1 | . . . . . . . . . . . . . 1 . . Garrison Access Hacks 1 | . . . . 1 . . . . . . . . . . . Seal Access 1 | . . . . 1 . . . . . . . . . . . Unauthorized Hacks 12 | . 9 . . . 1 . 2 . . . . . . . . Terminals 9 | . 7 . . . 1 . 1 . . . . . . . . Botnet 3 | . 2 . . . 1 . . . . . . . . . . Skim 6 | . 5 . . . . . 1 . . . . . . . . Fabricators . | . . . . . . . . . . . . . . . . Repair Stations . | . . . . . . . . . . . . . . . . Recycling Units 3 | . 2 . . . . . 1 . . . . . . . . Tunnel 3 | . 2 . . . . . 1 . . . . . . . . Scanalyzers . | . . . . . . . . . . . . . . . . Garrison Access . | . . . . . . . . . . . . . . . . Data Cores Recovered 3 | . 2 . . . . . . . . . . . . . 1 Used 1 | . . . . . . . . . . . . . . . 1 Hacking Detections 37 | . 8 . . 5 5 . 2 . 1 . . . 5 7 4 Full Trace Events 4 | . 1 . . 1 . . . . . . . . 1 1 . Feedback Events 2 | . . . . 1 . . . . . . . . 1 . . Corruption 2 | . . . . 1 . . . . . . . . 1 . . Feedback Blocked . | . . . . . . . . . . . . . . . . Robot Schematics Acquired . | . . . . . . . . . . . . . . . . Robots Built . | . . . . . . . . . . . . . . . . Authchips . | . . . . . . . . . . . . . . . . Time . | . . . . . . . . . . . . . . . . Total Robot Build Rating . | . . . . . . . . . . . . . . . . Part Schematics Acquired 8 | . . . . 1 1 . . . . 4 . . . 2 . Parts Built . | . . . . . . . . . . . . . . . . Authchips . | . . . . . . . . . . . . . . . . Time . | . . . . . . . . . . . . . . . . Total Part Build Rating . | . . . . . . . . . . . . . . . . Part Studies Acquired 1 | . . . . . . . . . . . . . 1 . . Parts Repaired 2 | . . . . 2 . . . . . . . . . . . Time 57 | . . . . 57 . . . . . . . . . . . Parts Recycled . | . . . . . . . . . . . . . . . . Recycled Matter . | . . . . . . . . . . . . . . . . Retrieved Matter . | . . . . . . . . . . . . . . . . Retrieved Components . | . . . . . . . . . . . . . . . . Parts Scanalyzed . | . . . . . . . . . . . . . . . . Part Schematics Acquired . | . . . . . . . . . . . . . . . . Parts Damaged . | . . . . . . . . . . . . . . . . Bothacking | -11 -10 -10 -8 -6 -6 -6 -5 -5 -5 -5 -4 -4 -3 -3 -2 ------------ Run | Yrd Mat Sub Scr Fac Ext Cet Fac Upp Upp Zhi Pro Fac Res Tes Res Used RIF Installer . | . . . . . . . . . . . . . . . . Robots Hacked . | . . . . . . . . . . . . . . . . Non-combat . | . . . . . . . . . . . . . . . . Combat . | . . . . . . . . . . . . . . . . Robot Hacks Applied . | . . . . . . . . . . . . . . . . Relay Couplers Released 2 | . . . . . . . . . . . . . 2 . . Machine Destruction 2 | . . . . . . . . . . . . . 2 . . Fabnet Peak Effective % . | . . . . . . . . . . . . . . . . Robots Rewired 11 | . . . . . 10 . 1 . . . . . . . . Allies Hacked . | . . . . . . . . . . . . . . . . Hacks Repelled . | . . . . . . . . . . . . . . . . Allies | -11 -10 -10 -8 -6 -6 -6 -5 -5 -5 -5 -4 -4 -3 -3 -2 -------- Run | Yrd Mat Sub Scr Fac Ext Cet Fac Upp Upp Zhi Pro Fac Res Tes Res Total Allies 18 | . . . . . 14 1 1 . . . . . . . 2 Largest Group 9 | . . . . . 9 3 1 . . . . . . . 2 Highest-Rated Group 246 | . . . . . 246 105 49 . . . . . . . 151 Highest-Rated Ally 76 | . . . . . 39 74 49 . . . . . . . 76 Initial UFD Resources 35 | . . . . 22 22 22 26 26 26 26 28 28 31 31 35 Total Orders 4 | . . . . . . . . 1 3 . . . . . . EXPLORE 3 | . . . . . . . . 1 2 . . . . . . RETURN 1 | . . . . . . . . . 1 . . . . . . Ally Attacks 174 | . . . . . 117 48 5 . . . . . . . 4 Total Damage 2852 | . . . . . 1788 851 101 . . . . . . . 112 Kills 25 | . . . . . 20 3 2 . . . . . . . . Allies Corrupted . | . . . . . . . . . . . . . . . . Allies Melted . | . . . . . . . . . . . . . . . . X0-1V1 Amusement Gains 214 | . 15 . . 5 40 . . . . . . . 25 87 42 Average Entertainment 28 | . 15 10 . 7 14 31 18 12 8 . 3 1 17 41 80 Good Acts 45 | . . 3 . 3 . 1 2 . 7 . . . 12 6 11 Bad Acts 30 | . . . . 3 2 2 1 . 1 . 1 . 9 6 5 Intel | -11 -10 -10 -8 -6 -6 -6 -5 -5 -5 -5 -4 -4 -3 -3 -2 ------- Run | Yrd Mat Sub Scr Fac Ext Cet Fac Upp Upp Zhi Pro Fac Res Tes Res Active Infowar (turns) 12834 | 147 870 . . 1580 2406 721 383 261 999 552 498 432 1088 1234 1663 Optics 11815 | . . . . 1578 2406 721 383 261 999 552 498 432 1088 1234 1663 Structural 3929 | . . . . . . . 382 94 . . . 431 1088 1172 762 Traps 559 | . . . . 559 . . . . . . . . . . . Seismic 1017 | 147 870 . . . . . . . . . . . . . . Jamming 2120 | . . . . . . . . . . . . . . 1023 1097 Robot Analysis Total 7 | . 1 . . 2 . . . . . 4 . . . . . Derelict Logs Recovered 5 | . . . 1 . . . . 1 2 . 1 . . . . Drone Launches 4 | . . . . . . . . 1 3 . . . . . . Drone Recoveries 4 | . . . . . . . . 1 3 . . . . . . Exploration | -11 -10 -10 -8 -6 -6 -6 -5 -5 -5 -5 -4 -4 -3 -3 -2 ------------- Run | Yrd Mat Sub Scr Fac Ext Cet Fac Upp Upp Zhi Pro Fac Res Tes Res Turns Passed 17253 | 249 1695 150 3262 1580 2406 721 383 261 999 552 498 432 1088 1234 1743 Spaces Moved 7320 | 110 991 44 2017 551 550 232 160 146 499 214 198 131 560 467 450 Core 394 | 97 . . 284 . . . . . . 1 . . . . 12 Treads 1538 | 13 156 . . 89 261 63 11 . 23 97 198 131 1 197 298 Legs . | . . . . . . . . . . . . . . . . Wheels 5380 | . 835 44 1733 462 289 169 149 146 476 116 . . 559 270 132 Hover 8 | . . . . . . . . . . . . . . . 8 Flight . | . . . . . . . . . . . . . . . . Fastest Speed 50 | 50 130 175 50 150 246 240 175 175 175 175 240 320 175 170 138 Average Speed 207 | 185 140 175 157 259 410 254 179 175 180 230 240 320 186 204 278 Slowest Speed 3200 | 200 320 175 1350 570 650 275 240 175 320 2550 240 320 465 270 3200 Overloaded Moves . | . . . . . . . . . . . . . . . . Propulsion Burnouts . | . . . . . . . . . . . . . . . . Robots Hopped 1 | . . . . . . . . . . . . . 1 . . Potential Cave-ins 3 | . . . . . . . . . . . . . . 3 . Cave-ins Triggered 1 | . . . . . . . . . . . . . . 1 . Teleports 1 | . . . . . . . . . . . . . . 1 . Exploration Rate (%) 45 | 5 98 3 93 15 77 86 6 43 93 63 42 5 18 62 12 Regions Visited 15 Branch Regions 9 Pre-discovered Areas 12 | . 4 . 3 . . . 1 . 1 3 . . . . . Known Exits Taken 8 | . . . . 1 . 1 1 1 . . 1 1 1 1 . Unknown Exits Taken 7 | 1 1 1 1 . 1 . . . 1 1 . . . . . Scrap Searched 11 | . . . 6 . . . . . 2 . 3 . . . . Spaces Dug 9 | . . . . . . . 1 . . . 2 . 3 2 1 Terrain Destroyed 246 | . 15 6 . . . 6 17 1 25 . 9 . 7 24 136 Melee 3 | . . . . . . . 1 . . . . . . 1 1 Projectile 121 | . . . . . . 6 16 1 7 . 9 . 7 23 52 AOE 122 | . 15 6 . . . . . . 18 . . . . . 83 Terrain Rammed . | . . . . . . . . . . . . . . . . Walls Destroyed . | . . . . . . . . . . . . . . . . Machines Disabled . | . . . . . . . . . . . . . . . . Actions | -11 -10 -10 -8 -6 -6 -6 -5 -5 -5 -5 -4 -4 -3 -3 -2 --------- Run | Yrd Mat Sub Scr Fac Ext Cet Fac Upp Upp Zhi Pro Fac Res Tes Res Total 8703 | 139 1162 70 2111 661 685 312 208 149 589 255 214 142 598 642 766 Wait 306 | . 36 . 3 28 13 . 2 1 64 . 7 . 8 44 100 Move 7303 | 109 990 43 2016 550 549 231 159 145 498 213 197 130 557 466 450 Hop 1 | . . . . . . . . . . . . . 1 . . Pick Up 191 | 12 33 1 50 18 9 14 4 . 2 8 3 4 5 12 16 Fast Attach 50 | . 1 . 3 7 7 4 . . 6 3 . . 8 9 2 Attach 75 | 7 2 3 5 8 2 2 3 . 3 5 . 2 . 5 28 Detach 3 | . . . . . . . . . . 2 . . . . 1 Swap 102 | 1 17 7 1 10 5 15 2 2 2 3 . 1 2 21 13 Drop 162 | 1 14 1 32 17 14 19 4 . 8 8 2 2 11 22 7 Fire 367 | 9 69 15 . 20 6 27 21 1 6 . 5 3 6 60 119 Melee 35 | . . . . 3 . . 1 . . 13 . . . 3 15 Ram . | . . . . . . . . . . . . . . . . Kick . | . . . . . . . . . . . . . . . . Crush . | . . . . . . . . . . . . . . . . Escape Stasis 2 | . . . . . 2 . . . . . . . . . . Rewire 105 | . . . . . 78 . 12 . . . . . . . 15 Trap . | . . . . . . . . . . . . . . . . Miscellaneous 1 | . . . 1 . . . . . . . . . . . . Route ------- -11/Scrapyard -10/Materials (discovered 6 exits: [*Mat x3] / [*Min x2] / [*Sub]) -10/Subcaves (discovered 3 exits: Mat x2 / *Scr) -8/Scraptown (discovered 2 exits: *Fac x2) -6/Factory (discovered 3 exits: Fac / Low / *Ext) -6/Extension (discovered 3 exits: *Fac x2 / *Cet) -6/Cetus (discovered 2 exits: *Fac / [*Arc]) -5/Factory (discovered 2 exits: *Upp x2) -5/Upper Caves -5/Upper Caves -5/Zhirov -4/Proximity Caves -4/Factory (discovered 3 exits: *Res x2 / Arm) -3/Research (discovered 4 exits: Res x2 / *Tes x2) -3/Testing -2/Research (discovered 1 exit: Qua) History --------- Turn | Location | Event 25 | -11/Scrapyard | Discovered new exit (range 15) 250 | -11/Scrapyard | Entered Materials 317 | -10/Materials | Build established: Mutant 496 | -10/Materials | Discovered new exit (range 5) 664 | -10/Materials | Central database locked down 834 | -10/Materials | Learned location of Recycling (-8) 928 | -10/Materials | Discovered new exit (range 7) 954 | -10/Materials | Learned 4 Recycling zone layouts 998 | -10/Materials | Learned location of 1 exit from Recycling 1031 | -10/Materials | Learned 4 Subcaves zone layouts 1074 | -10/Materials | Learned 2 Storage zone layouts 1127 | -10/Materials | Learned Storage trap positions 1446 | -10/Materials | Discovered new exit (range 8) 1511 | -10/Materials | Core integrity fell below 50% 1539 | -10/Materials | Discovered new exit (range 16) 1542 | -10/Materials | Destroyed 8 combat bots 1631 | -10/Materials | Discovered new exit (range 10) 1923 | -10/Materials | Discovered new exit (range 7) 1937 | -10/Materials | Prayed at D.C.S.S. Altar Unit 1945 | -10/Materials | Entered Subcaves 1946 | -10/Subcaves | Approached by a straggling Scientist 1946 | -10/Subcaves | Identified exit to Materials 1948 | -10/Subcaves | Ambushed by Subdwellers from Twisted Machinery 2089 | -10/Subcaves | X0-1V1 revealed exit location to -8/Materials 2095 | -10/Subcaves | Entered Scraptown 2095 | -8/Scraptown | System corruption cleaned by C-Scrubber 2518 | -8/Scraptown | Scanned Subdweller tech in exchange for log data 2554 | -8/Scraptown | Discovered new exit (range 13) 2727 | -8/Scraptown | Visited Red Mages 2824 | -8/Scraptown | Visited The Evicted 2990 | -8/Scraptown | Visited Comm Corps 3081 | -8/Scraptown | Visited Cave Peace 3444 | -8/Scraptown | Visited Cyclists 3483 | -8/Scraptown | Visited Fellowship of the Rings 3515 | -8/Scraptown | Visited TADAMA 3578 | -8/Scraptown | Visited UFD Registry 3578 | -8/Scraptown | Registered with UFD as "Fluxnade" 3605 | -8/Scraptown | Entered Cyclist Reading Room 3699 | -8/Scraptown | Visited Science Guys 3787 | -8/Scraptown | Visited Science Testing Area 3823 | -8/Scraptown | Visited Infowarlord's Domain 3838 | -8/Scraptown | Found Exp. Sensor Array 3877 | -8/Scraptown | Visited DA-N13 Charitable Foundation 3893 | -8/Scraptown | Found DCF Scrap (29 items) 3972 | -8/Scraptown | Visited Scrap Suit Storage 4017 | -8/Scraptown | Visited Cartography Club 4209 | -8/Scraptown | Found Surveybot 17 Chip 4234 | -8/Scraptown | Learned location of Cetus (-6) 4234 | -8/Scraptown | Learned location of Testing (-3) 4234 | -8/Scraptown | Learned 8 Materials zone layouts 4234 | -8/Scraptown | Learned 16 Research zone layouts 4234 | -8/Scraptown | Learned 4 Storage zone layouts 4234 | -8/Scraptown | Learned 4 Recycling zone layouts 4234 | -8/Scraptown | Learned 8 Lower Caves zone layouts 4234 | -8/Scraptown | Learned 24 Proximity Caves zone layouts 4234 | -8/Scraptown | Learned 16 Upper Caves zone layouts 4234 | -8/Scraptown | Learned 12 Proximity Caves zone layouts 4234 | -8/Scraptown | Learned Research emergency access door positions 4234 | -8/Scraptown | Learned location of 2 exits from Proximity Caves 4234 | -8/Scraptown | Learned location of 2 exits from Factory 4252 | -8/Scraptown | Found Deep Structural Scanner 4417 | -8/Scraptown | Visited Junk Repository 4481 | -8/Scraptown | Visited Observation Area 4756 | -8/Scraptown | Visited Derelict Rescue Squad 4772 | -8/Scraptown | Found DRS Beacon 4818 | -8/Scraptown | Found Scrap Suit 4822 | -8/Scraptown | Found Scrap Suit 5063 | -8/Scraptown | Visited Curators Association 5177 | -8/Scraptown | Met Optimus 5177 | -8/Scraptown | Accepted into 0bPrime 5346 | -8/Scraptown | Discovered new exit (range 3) 5357 | -8/Scraptown | Entered Factory 5357 | -6/Factory | Evolved 8 slots: Power x1, Propulsion x2, Utility x4, Weapon x1 5358 | -6/Factory | Identified exit to Lower Caves 5359 | -6/Factory | Identified exit to Factory 5359 | -6/Factory | Identified exit to Extension 5361 | -6/Factory | X0-1V1 foreshadows a heat wave 5415 | -6/Factory | Repaired Hcp. Battery 5686 | -6/Factory | Ambient heat levels rising (+10) 5727 | -6/Factory | Repaired Coolant Injector 5755 | -6/Factory | Matter capacity permanently improved by X0-1V1 (+200; -100 max core) 5855 | -6/Factory | X0-1V1 vaporized surrounding terrain (radius 15) 5857 | -6/Factory | Cargo convoy interrupted 6069 | -6/Factory | Ambient heat levels rising (+10) 6084 | -6/Factory | Build established: Skirmisher 6333 | -6/Factory | Ambient heat levels falling (-10) 6387 | -6/Factory | X0-1V1 added 0b10 threat records associated with you (major) 6727 | -6/Factory | Ambient heat levels falling (-10) 6937 | -6/Factory | Entered Extension 6943 | -6/Extension | X0-1V1 dreamt of freedom 6943 | -6/Extension | Rescued a captive Derelict 6946 | -6/Extension | Rescued a captive Derelict 6947 | -6/Extension | Rescued a captive Derelict 6949 | -6/Extension | Rescued a captive Derelict 6950 | -6/Extension | Rescued a captive Derelict 6952 | -6/Extension | Rescued a captive Derelict 6953 | -6/Extension | Rescued a captive Derelict 6954 | -6/Extension | Rescued a captive Derelict 6956 | -6/Extension | Rescued a captive Derelict 6963 | -6/Extension | Rescued a captive Derelict 6966 | -6/Extension | Rescued a captive Derelict 6974 | -6/Extension | Rescued a captive Derelict 6977 | -6/Extension | Rescued a captive Derelict 8253 | -6/Extension | Spotted B-75 Beast 8296 | -6/Extension | X0-1V1 announced a LAN party 8361 | -6/Extension | Discovered exit to Factory (range 19) 8361 | -6/Extension | Spotted B-75 Beast 8380 | -6/Extension | Allies destroyed B-75 Beast 8493 | -6/Extension | Extracted ID and sensor layout for unrecognized location from A7's data core 8746 | -6/Extension | Build established: Scavenger-Tank 9265 | -6/Extension | Discovered exit to Factory (range 10) 9267 | -6/Extension | Discovered new exit (range 6) 9272 | -6/Extension | Lost 4 allies 9343 | -6/Extension | Entered Cetus 9343 | -6/Cetus | Accompanied by 3 allies 9377 | -6/Cetus | Spotted Cetus Guard 9378 | -6/Cetus | Spotted Cetus Guard 9383 | -6/Cetus | Spotted Cetus Guard 9385 | -6/Cetus | Spotted Cetus Guard 9392 | -6/Cetus | Allies destroyed Cetus Guard 9402 | -6/Cetus | Allies destroyed Cetus Guard 9407 | -6/Cetus | Destroyed Cetus Guard 9412 | -6/Cetus | Destroyed Cetus Guard 9745 | -6/Cetus | Discovered new exit (range 20) 9807 | -6/Cetus | Spotted Cetus Guard 9810 | -6/Cetus | Spotted Cetus Guard 9811 | -6/Cetus | Spotted Cetus Guard 9814 | -6/Cetus | Spotted Cetus Guard 9816 | -6/Cetus | Destroyed Cetus Guard 9827 | -6/Cetus | Destroyed Cetus Guard 9827 | -6/Cetus | Destroyed Cetus Guard 9833 | -6/Cetus | X0-1V1 turns hostiles against one another 9842 | -6/Cetus | Discovered exit to Factory (range 20) 9854 | -6/Cetus | Destroyed Cetus Guard 9878 | -6/Cetus | Met Revision 17 10064 | -6/Cetus | Entered Factory 10064 | -5/Factory | Accompanied by 1 ally 10064 | -5/Factory | Evolved 2 slots: Utility x2 10065 | -5/Factory | Identified exit to Upper Caves 10128 | -5/Factory | X0-1V1 sent you into danger 10447 | -5/Factory | Entered Upper Caves 10448 | -5/Upper Caves | Identified exit to Upper Caves 10464 | -5/Upper Caves | Learned Factory terminal intel 10540 | -5/Upper Caves | Attracted the attention of an 0b10 checkpoint 10708 | -5/Upper Caves | Entered another Upper Caves area 10800 | -5/Upper Caves | Ranged accuracy permanently improved by X0-1V1 (+5%; -50 max core) 10865 | -5/Upper Caves | X0-1V1 opened Sealed Heavy Doors 11564 | -5/Upper Caves | Discovered new exit (range 20) 11707 | -5/Upper Caves | Entered Zhirov 11707 | -5/Zhirov | Discovered new exit (range 5) 11768 | -5/Zhirov | Met Zhirov 11835 | -5/Zhirov | Learned location of Quarantine (-2) 11835 | -5/Zhirov | Learned location of Command (-1) 11877 | -5/Zhirov | Zhirov requested help retrieving the SGEMP Prototype 11927 | -5/Zhirov | Found Alien Artifact 11958 | -5/Zhirov | Found Alien Artifact 11976 | -5/Zhirov | Identified Integrated Reactor 11976 | -5/Zhirov | Installed Integrated Reactor, increased core energy generation (+10) 12259 | -5/Zhirov | Entered Proximity Caves 12260 | -4/Proximity Caves | Identified exit to Factory 12740 | -4/Proximity Caves | Learned Research emergency access door positions 12757 | -4/Proximity Caves | Entered Factory 12757 | -4/Factory | Evolved 2 slots: Power x1, Utility x1 12758 | -4/Factory | Identified exit to Research 12758 | -4/Factory | Identified exit to Armory 12759 | -4/Factory | Loaded intel: 26 terminal locations 13122 | -4/Factory | Discovered exit to Research (range 9) 13189 | -4/Factory | Entered Research 13189 | -3/Research | Evolved 2 slots: Propulsion x2 13190 | -3/Research | Identified exit to Research 13222 | -3/Research | X0-1V1 caused items to flee you 13258 | -3/Research | Energy capacity permanently improved by X0-1V1 (+300; -150 max core) 13281 | -3/Research | X0-1V1 vaporized surrounding terrain (radius 17) 13311 | -3/Research | X0-1V1 activates XOMVISION 13331 | -3/Research | X0-1V1 announced a LAN party 13340 | -3/Research | X0-1V1 released a cloud of subatomizers 13362 | -3/Research | X0-1V1 revealed exit location to -2/Research 13389 | -3/Research | Revision forces began assault on 0b10 13397 | -3/Research | X0-1V1 added 0b10 threat records associated with you (major) 13433 | -3/Research | Met up with Revision 17++ 13473 | -3/Research | Items stopped fleeing you 13646 | -3/Research | Identified exit to Testing 13646 | -3/Research | X0-1V1 revealed exit location to -3/Testing 13855 | -3/Research | X0-1V1 revealed exit location to -3/Testing 13884 | -3/Research | X0-1V1 redirected Transport squads to designated parking area 13889 | -3/Research | Research terminal network offline 13977 | -3/Research | Spotted Striker 13978 | -3/Research | Spotted Striker 14010 | -3/Research | Destroyed Striker 14277 | -3/Research | Entered Testing 14533 | -3/Testing | Found Hvy. Scimitar of Distortion 14541 | -3/Testing | Found Prototype Launcher 14542 | -3/Testing | Identified Z-bomb Delivery System 14639 | -3/Testing | Spotted Striker 14658 | -3/Testing | Spotted Striker 14661 | -3/Testing | Spotted Alpha 7 14678 | -3/Testing | Destroyed Striker 14680 | -3/Testing | Destroyed Striker 14707 | -3/Testing | Destroyed Alpha 7 14767 | -3/Testing | Stole the SGEMP Prototype 14788 | -3/Testing | System corruption reached 10% 14949 | -3/Testing | Found Prototype Energy Gun 14949 | -3/Testing | Identified Tachyon Dispersion Ray 15030 | -3/Testing | Found Prototype Energy Cannon 15030 | -3/Testing | Identified Null Cannon 15079 | -3/Testing | X0-1V1 vaporized surrounding terrain (radius 20) 15086 | -3/Testing | Found Prototype Hackware 15086 | -3/Testing | Identified Ghost Barrier 15140 | -3/Testing | Scanned by Researcher 15141 | -3/Testing | Garrison activated, responded to threat 15155 | -3/Testing | Unstable Terrabomb Derivative detonated 15157 | -3/Testing | Crushed by falling debris 15161 | -3/Testing | Identified Transdimensional Reconstructor 15161 | -3/Testing | Warped through subspace 15161 | -3/Testing | Spotted PL-A1V6J4160R 15193 | -3/Testing | Destroyed PL-A1V6J4160R 15236 | -3/Testing | Discovered exit to Research (range 9) 15274 | -3/Testing | Found Prototype Energy Cannon 15384 | -3/Testing | Build established: Hacker-Tank 15511 | -3/Testing | Entered Research 15511 | -2/Research | Evolved 2 slots: Power x1, Utility x1 15760 | -2/Research | X0-1V1 sent hostile B-74 Champion (x2) 15832 | -2/Research | Build established: Generator-Tank 15844 | -2/Research | Identified exit to DSF 15849 | -2/Research | X0-1V1 caused items to flee you 15963 | -2/Research | X0-1V1 whisked you away to safety 15969 | -2/Research | Identified exit to Quarantine 15969 | -2/Research | X0-1V1 revealed exit location to -2/Quarantine 16086 | -2/Research | Items stopped fleeing you 16670 | -2/Research | System corruption reached 10% 16714 | -2/Research | Lost 3 parts (2n1u) 16852 | -2/Research | X0-1V1 sent allied Mutant (x2) 16860 | -2/Research | Core integrity fell below 50% 16867 | -2/Research | Lost 11 parts (2p2n6u1w) 16876 | -2/Research | Destroyed 11 combat bots 16926 | -2/Research | Lost 3 parts (1u2w) 17011 | -2/Research | First assault squad dispatched 17040 | -2/Research | Core integrity fell below 20% 17041 | -2/Research | Identified Hpw. Disruptor Cannon 17082 | -2/Research | Lost 5 parts (2p3w) 17150 | -2/Research | System corruption reached 30% 17254 | -2/Research | Destroyed by Y-72 Warden with Quantum Rifle Last Messages --------------- 17216_ K-01 Serf collects debris. 17219_ Acquired Corrupted Unknown Energy Gun. 17220_ K-01 Serf collects debris. 17222_ Acquired Prototype Device. 17223_ Identified Exp. Cooling System. 17223_ K-01 Serf collects debris. 17225_ System corrupted: Component data lost. 17226_ ALERT: Potential suspicious activity detected, Programmers report to Research Zone 8B. 17226_ Acquired 30 matter. 17227_ Acquired 17 matter. 17227_ K-01 Serf collects debris. 17235_ R-10 Processor collects Med. Storage Unit. 17240_ System corrupted: Component data lost. 17248_ Hpw. Disruptor Cannon destroyed. 17251_ Penetrated by Slug. 17251_ Mapping Drone Bay destroyed. 17254_ X0-1V1 snickers! Map ----- +----------------------------------------------------+ | ???? # # #### % % % ############???????? | | ???? # #####"% # % """" ####???????????????? | | ???? + "#### """ ####???????????????? | | ???? # ##### % %! ####???????????????? | | ???? + / % ####???????????????? | | ???? # ##### " ####???????????????? | | ???? # ##### " % ####???????????????? | | ???? # ##### [ ####???????????????? | | ???? # ### # % ####???????????????? | | ???????? ????# ## ! % ! ####???????????????? | | ???????# ## #######k#########???????????????? | | ??????# % # # * p% ######???????????????? | | ??????# ####### ! # ####???????????????? | | ??????# % # ####???????????????? | | ??????+ ###??????????????????? | | ??????# # ???????????????????? | | ??????# ####### # #??????????????????? | | ??????# # # #??????????????????? | | ??????### # #### ### #??????????????????? | | ????????# % # ## #??????????????????? | | ????????? # %[# # ##??????????????????? | | ????????? ??+ " # ####???????????????????? | | ????????????# "" # % #??????????????????????? | | ????????????# """ ?# #??????????????????????? | | ????????????# ?# #### #?????????????? | | ????????????? ??? ?# @ ;#????????????? | | ????????????????? ?# Y w ????????? | | ??????????????????##??# !###???????????? | | ??????????????????????#### T## % #?????????????? | | ?????????????????????? #??###??# ###?????????????? | | ?????????????????????? ??????????#???????????????? | | ?????????????????????? ??????????????????????????? | | ?????????????????????? ??????????????????????????? | | ?????????????????????????????????????????????????? | | ?????????????????????????????????????????????????? | | ?????????????????????????????????????????????????? | | ?????????????????????????????????????????????????? | | ?????????????????????????????????????????????????? | | ?????????????????????????????????????????????????? | | ?????????????????????????????????????????????????? | | ?????????????????????????????????????????????????? | | ?????????????????????????????????????????????????? | | ?????????????????????????????????????????????????? | | ?????????????????????????????????????????????????? | | ?????????????????????????????????????????????????? | | ?????????????????????????????????????????????????? | | ?????????????????????????????????????????????????? | | ?????????????????????????????????????????????????? | | ?????????????????????????????????????????????????? | | ?????????????????????????????????????????????????? | +----------------------------------------------------+ Best States ------------- Heat Dissipation 225 Coolant Potential 65 Energy Generation 109 Energy Capacity 1995 Matter Stores 1189 Matter Capacity 1200 Sight Range 24 Terrain Scan Density 10 Jamming Range 16 Armor Coverage 900 Resistance: TH 22 Weapon Cycling 20 Phase Shifting 5 Evasion (%) 50 Recoil Reduction 10 Matter Filtering 50 Particle Charging 30 Kinecelleration 40 Offensive Hacking 20 Defensive Hacking 20 Item Schematics ----------------- Drone Bay | -6/Factory | Hacked Hardcell Cannon | -6/Extension | Hacked Assault Drone Bay | -5/Zhirov | Free Exp. Heat Sink | -5/Zhirov | Free Exp. Optical Array | -5/Zhirov | Free Imp. Arc Thrower | -5/Zhirov | Free Centrium Greatsword | -3/Testing | Archive Adv. Matter Compressor | -3/Testing | Archive Robot Schematics ------------------ None Fabricated ------------ Nothing Repaired ---------- Hcp. Battery | 35% | -6/Factory Coolant Injector | 44% | -6/Factory Studied --------- Hardcell Cannon | -3/Research | Hacked Alien Tech Used ----------------- Integrated Reactor Transdimensional Reconstructor Achievements -------------- Tailor-made Challenges ------------ None Game ------ Seed SuperdenseImpulseMultirail Manual? 0 Play Time 03:00:36 Cumulative 428.8 hours Start 2026.09.09 @ 05:23:05 End 2026.09.10 @ 08:11:53 Sessions 2 Manual Loads 0 Difficulty Rogue Special Mode None Game No. 310 Rogue 300 Adventurer 0 Explorer 10 Win Type - Total 5 Types 5/0/0/0/0/0/0/0/0/0 Lore% 82 Gallery% 66 Achievement% 47 Wizard Run 0 Options --------- Layout 2 ASCII 0 Keyboard 0 Movement Arrows Keybinds 1 Fullscreen 1 Font 24/Terminus Map View 50x44 Zoom Use 0% Tactical HUD 1 Map Filters NONE Filters NONE Steam 1 RUN: 36395f34-d965-4fa2-a8b9-eaf60718ec89